[Event "*** Titled Tuesday Blitz"]
[Site "Chess.com"]
[Date "2020.12.01"]
[Round "6"]
[White "StockholmMissile"]
[Black "yobdc"]
[Result "1-0"]
[WhiteElo "2380"]
[BlackElo "2476"]
[TimeControl "180+1"]
[EndTime "11:04:34 PST"]
[Termination "StockholmMissile won on time"]

1. d4 {[%clk 0:03:00.9]} 1... e6 {[%clk 0:02:59.3]} 2. Nf3 {[%clk 0:02:59.7]}
2... f5 {[%clk 0:02:59.1]} 3. g3 {[%clk 0:02:59.5]} 3... Nf6 {[%clk 0:02:59.2]}
4. Bg2 {[%clk 0:02:59.9]} 4... d5 {[%clk 0:02:59.5]} 5. O-O {[%clk 0:02:59.9]}
5... Bd6 {[%clk 0:02:59.5]} 6. c4 {[%clk 0:02:59.2]} 6... c6 {[%clk 0:02:59.7]}
7. b3 {[%clk 0:02:56.6]} 7... Qe7 {[%clk 0:02:59.7]} 8. Bf4 {[%clk 0:02:56]}
8... Bxf4 {[%clk 0:02:59.4]} 9. gxf4 {[%clk 0:02:56.1]} 9... Nbd7 {[%clk
0:02:56.1]} 10. Nbd2 {[%clk 0:02:54.4]} 10... Ne4 {[%clk 0:02:54.6]} 11. Ne5
{[%clk 0:02:50.5]} 11... Nxe5 {[%clk 0:02:44]} 12. fxe5 {[%clk 0:02:47.9]} 12...
O-O {[%clk 0:02:29.2]} 13. f4 {[%clk 0:02:35]} 13... Bd7 {[%clk 0:02:28.1]} 14.
Nxe4 {[%clk 0:02:33.2]} 14... fxe4 {[%clk 0:02:27.4]} 15. e3 {[%clk 0:02:31.1]}
15... Be8 {[%clk 0:02:24.4]} 16. c5 {[%clk 0:02:28.9]} 16... Kh8 {[%clk
0:02:08.4]} 17. b4 {[%clk 0:02:26.9]} 17... Qh4 {[%clk 0:02:01.2]} 18. Qe1
{[%clk 0:02:22.1]} 18... Qh6 {[%clk 0:01:56.5]} 19. Rb1 {[%clk 0:02:16.5]} 19...
a6 {[%clk 0:01:54.3]} 20. a4 {[%clk 0:02:10.7]} 20... Bh5 {[%clk 0:01:51.7]} 21.
Rb2 {[%clk 0:02:01.4]} 21... g5 {[%clk 0:01:39.3]} 22. Rbf2 {[%clk 0:01:59]}
22... Rf5 {[%clk 0:01:06.2]} 23. Bh3 {[%clk 0:01:32.3]} 23... g4 {[%clk
0:00:57.9]} 24. Bg2 {[%clk 0:01:31.5]} 24... Rg8 {[%clk 0:00:57.7]} 25. Rb2
{[%clk 0:01:29.3]} 25... Be8 {[%clk 0:00:57.3]} 26. Qg3 {[%clk 0:01:24.7]} 26...
Qg7 {[%clk 0:00:48.6]} 27. b5 {[%clk 0:01:20.1]} 27... cxb5 {[%clk 0:00:47]} 28.
axb5 {[%clk 0:01:16]} 28... Bxb5 {[%clk 0:00:47.9]} 29. Rfb1 {[%clk 0:01:15.6]}
29... Qe7 {[%clk 0:00:45.5]} 30. Bf1 {[%clk 0:01:14.8]} 30... Bc6 {[%clk
0:00:35.4]} 31. Rb6 {[%clk 0:01:13.5]} 31... Qd7 {[%clk 0:00:18.8]} 32. Qh4
{[%clk 0:01:12.8]} 32... g3 {[%clk 0:00:16.5]} 33. hxg3 {[%clk 0:01:10.7]} 33...
Qe8 {[%clk 0:00:05.3]} 34. R1b2 {[%clk 0:01:02.5]} 34... h5 {[%clk 0:00:02.5]}
35. Rh2 {[%clk 0:00:58.6]} 35... Kh7 {[%clk 0:00:02.4]} 36. g4 {[%clk 0:00:49]}
1-0

[Event "*** Titled Tuesday Blitz"]
[Site "Chess.com"]
[Date "2020.12.01"]
[Round "6"]
[White "theredking89"]
[Black "WelshTiger"]
[Result "1-0"]
[WhiteElo "2643"]
[BlackElo "2459"]
[TimeControl "180+1"]
[EndTime "11:04:38 PST"]
[Termination "theredking89 won by resignation"]

1. e4 {[%clk 0:03:00.9]} 1... c5 {[%clk 0:02:59.3]} 2. d4 {[%clk 0:03:00.1]}
2... cxd4 {[%clk 0:02:59.2]} 3. c3 {[%clk 0:03:01]} 3... Nf6 {[%clk 0:02:56.4]}
4. e5 {[%clk 0:03:01.2]} 4... Nd5 {[%clk 0:02:56.6]} 5. Qxd4 {[%clk 0:03:02.1]}
5... Nb6 {[%clk 0:02:46.7]} 6. Nf3 {[%clk 0:02:55.8]} 6... Nc6 {[%clk
0:02:31.3]} 7. Qe4 {[%clk 0:02:48.4]} 7... g6 {[%clk 0:02:25.8]} 8. a4 {[%clk
0:02:39.2]} 8... d5 {[%clk 0:02:13.1]} 9. exd6 {[%clk 0:02:13.2]} 9... Qxd6
{[%clk 0:02:12.7]} 10. Na3 {[%clk 0:02:11.5]} 10... Qe6 {[%clk 0:02:03.1]} 11.
Bd3 {[%clk 0:01:57.4]} 11... a6 {[%clk 0:01:43]} 12. O-O {[%clk 0:01:13.1]}
12... Qxe4 {[%clk 0:01:42.1]} 13. Bxe4 {[%clk 0:01:13.3]} 13... Bg7 {[%clk
0:01:31.2]} 14. Be3 {[%clk 0:01:07.4]} 14... Nxa4 {[%clk 0:01:27.1]} 15. Nc4
{[%clk 0:01:03.3]} 15... Nxb2 {[%clk 0:01:01.7]} 16. Nxb2 {[%clk 0:01:02.6]}
16... Bxc3 {[%clk 0:01:02.2]} 17. Rab1 {[%clk 0:01:02.4]} 17... f5 {[%clk
0:00:55.4]} 18. Bxc6+ {[%clk 0:01:01.3]} 18... bxc6 {[%clk 0:00:55.9]} 19. Rfc1
{[%clk 0:00:57.9]} 19... Bf6 {[%clk 0:00:52.7]} 20. Bd4 {[%clk 0:00:56.5]} 20...
O-O {[%clk 0:00:27.9]} 21. Na4 {[%clk 0:00:55.8]} 21... Be6 {[%clk 0:00:19.5]}
22. Nc5 {[%clk 0:00:53.7]} 22... Bd5 {[%clk 0:00:18.9]} 23. Nd7 {[%clk
0:00:48.4]} 23... Rfd8 {[%clk 0:00:10.3]} 24. Nxf6+ {[%clk 0:00:45.7]} 24...
exf6 {[%clk 0:00:10.2]} 25. Bxf6 {[%clk 0:00:46.6]} 25... Rd7 {[%clk 0:00:10.5]}
26. Ba1 {[%clk 0:00:36.4]} 26... a5 {[%clk 0:00:10.5]} 27. Ne5 {[%clk
0:00:36.1]} 27... Rc7 {[%clk 0:00:10.6]} 28. Rc5 {[%clk 0:00:33.2]} 28... a4
{[%clk 0:00:11]} 29. Rbc1 {[%clk 0:00:33.3]} 29... Raa7 {[%clk 0:00:10.1]} 30.
Nxc6 {[%clk 0:00:29.7]} 30... a3 {[%clk 0:00:06.4]} 31. Nxa7 {[%clk 0:00:27.7]}
31... Rxa7 {[%clk 0:00:06.1]} 32. Rxd5 {[%clk 0:00:27.5]} 1-0

[Event "*** Titled Tuesday Blitz"]
[Site "Chess.com"]
[Date "2020.12.01"]
[Round "6"]
[White "ikhasu"]
[Black "DarZay"]
[Result "1-0"]
[WhiteElo "2430"]
[BlackElo "2161"]
[TimeControl "180+1"]
[EndTime "11:04:38 PST"]
[Termination "ikhasu won on time"]

1. d4 {[%clk 0:03:00.9]} 1... d5 {[%clk 0:02:59.4]} 2. Bf4 {[%clk 0:03:00]} 2...
e6 {[%clk 0:02:56.9]} 3. e3 {[%clk 0:02:59.9]} 3... Nf6 {[%clk 0:02:56.5]} 4.
Nd2 {[%clk 0:02:59.5]} 4... Be7 {[%clk 0:02:56.7]} 5. Bd3 {[%clk 0:02:56.6]}
5... O-O {[%clk 0:02:56.2]} 6. h3 {[%clk 0:02:52.6]} 6... c5 {[%clk 0:02:54.4]}
7. c3 {[%clk 0:02:52.1]} 7... c4 {[%clk 0:02:54.3]} 8. Bc2 {[%clk 0:02:51.8]}
8... Nc6 {[%clk 0:02:54.2]} 9. Ngf3 {[%clk 0:02:51.3]} 9... b5 {[%clk
0:02:52.4]} 10. Qe2 {[%clk 0:02:45.2]} 10... a5 {[%clk 0:02:45.6]} 11. e4 {[%clk
0:02:45]} 11... b4 {[%clk 0:02:37.9]} 12. e5 {[%clk 0:02:37.3]} 12... Ne8 {[%clk
0:02:34.8]} 13. h4 {[%clk 0:02:26.6]} 13... f6 {[%clk 0:02:29]} 14. exf6 {[%clk
0:02:19.4]} 14... Nxf6 {[%clk 0:02:25.3]} 15. Ng5 {[%clk 0:02:15.7]} 15... Kh8
{[%clk 0:02:16.5]} 16. O-O {[%clk 0:01:36.3]} 16... Qe8 {[%clk 0:01:47.8]} 17.
Rae1 {[%clk 0:01:26.7]} 17... Ne4 {[%clk 0:01:14.2]} 18. Ndxe4 {[%clk
0:00:34.8]} 18... Rxf4 {[%clk 0:01:10.9]} 19. Ng3 {[%clk 0:00:34.6]} 19... Rxh4
{[%clk 0:01:06.3]} 20. Nxe6 {[%clk 0:00:32.3]} 20... Bxe6 {[%clk 0:00:43.9]} 21.
Qxe6 {[%clk 0:00:31.8]} 21... Rh6 {[%clk 0:00:42.4]} 22. Qxd5 {[%clk 0:00:30.1]}
22... Qg8 {[%clk 0:00:19.2]} 23. Qxg8+ {[%clk 0:00:25.7]} 23... Kxg8 {[%clk
0:00:19]} 24. d5 {[%clk 0:00:20.7]} 24... Bd6 {[%clk 0:00:02.8]} 25. dxc6 {[%clk
0:00:20.2]} 1-0

[Event "*** Titled Tuesday Blitz"]
[Site "Chess.com"]
[Date "2020.12.01"]
[Round "6"]
[White "GigaQuparadze"]
[Black "temus_galaktionov"]
[Result "1-0"]
[WhiteElo "2910"]
[BlackElo "2700"]
[TimeControl "180+1"]
[EndTime "11:04:39 PST"]
[Termination "GigaQuparadze won by resignation"]

1. e4 {[%clk 0:03:00.9]} 1... c6 {[%clk 0:03:00.9]} 2. d4 {[%clk 0:03:00.7]}
2... g6 {[%clk 0:03:01.4]} 3. Nc3 {[%clk 0:03:01.5]} 3... Bg7 {[%clk 0:03:01.5]}
4. Nf3 {[%clk 0:03:01.8]} 4... d6 {[%clk 0:03:01.8]} 5. h3 {[%clk 0:03:01.3]}
5... Nd7 {[%clk 0:03:02.1]} 6. a4 {[%clk 0:03:00.9]} 6... e5 {[%clk 0:03:02]} 7.
Bc4 {[%clk 0:03:00.2]} 7... Ngf6 {[%clk 0:03:02.1]} 8. dxe5 {[%clk 0:02:59.1]}
8... dxe5 {[%clk 0:03:03]} 9. Qd6 {[%clk 0:02:57.3]} 9... Bf8 {[%clk 0:03:02.7]}
10. Qd3 {[%clk 0:02:56.3]} 10... Bg7 {[%clk 0:03:02.4]} 11. b3 {[%clk
0:02:43.8]} 11... Qa5 {[%clk 0:02:47.5]} 12. O-O {[%clk 0:02:38]} 12... Nc5
{[%clk 0:02:33.7]} 13. Qe3 {[%clk 0:02:22.2]} 13... Be6 {[%clk 0:01:58.7]} 14.
Be2 {[%clk 0:02:14.6]} 14... O-O-O {[%clk 0:01:43.6]} 15. b4 {[%clk 0:02:14]}
15... Qxb4 {[%clk 0:01:42.4]} 16. Ba3 {[%clk 0:02:14.1]} 16... Qa5 {[%clk
0:01:07.1]} 17. Bxc5 {[%clk 0:02:12]} 17... Bh6 {[%clk 0:01:06.6]} 18. Qxh6
{[%clk 0:02:10.2]} 18... Qxc5 {[%clk 0:01:07]} 19. Qe3 {[%clk 0:02:09.3]} 19...
Qa5 {[%clk 0:01:05.4]} 20. Rfb1 {[%clk 0:02:07.5]} 20... Rd7 {[%clk 0:01:04.6]}
21. Nb5 {[%clk 0:01:59.8]} 21... Kb8 {[%clk 0:00:54.7]} 22. Nxe5 {[%clk
0:01:58.7]} 22... Re7 {[%clk 0:00:51.2]} 23. Nxc6+ {[%clk 0:01:57.8]} 23... bxc6
{[%clk 0:00:50.9]} 24. Qf4+ {[%clk 0:01:57.7]} 24... Ka8 {[%clk 0:00:49.1]} 25.
Qxf6 {[%clk 0:01:57.6]} 25... Ree8 {[%clk 0:00:46.1]} 26. e5 {[%clk 0:01:55.9]}
26... Bd5 {[%clk 0:00:34.9]} 27. Bf3 {[%clk 0:01:55.8]} 27... Rc8 {[%clk
0:00:19.2]} 28. Bxd5 {[%clk 0:01:51]} 28... cxd5 {[%clk 0:00:20.1]} 29. Qxf7
{[%clk 0:01:51.4]} 29... Rhd8 {[%clk 0:00:20.5]} 30. Nd6 {[%clk 0:01:50.4]}
30... Rc7 {[%clk 0:00:18.7]} 31. Qf3 {[%clk 0:01:49]} 31... Rxc2 {[%clk
0:00:17.6]} 32. Rb5 {[%clk 0:01:48.2]} 32... Qa6 {[%clk 0:00:15.5]} 33. Qxd5+
{[%clk 0:01:47.5]} 33... Qc6 {[%clk 0:00:15.9]} 34. Qxc6+ {[%clk 0:01:47.2]}
34... Rxc6 {[%clk 0:00:16.8]} 35. Rab1 {[%clk 0:01:45.8]} 35... a6 {[%clk
0:00:16.7]} 36. Rb6 {[%clk 0:01:45.1]} 36... Rxb6 {[%clk 0:00:17]} 37. Rxb6
{[%clk 0:01:45.6]} 37... Rd7 {[%clk 0:00:16.9]} 38. Rxa6+ {[%clk 0:01:45.5]}
38... Kb8 {[%clk 0:00:17.8]} 39. Rb6+ {[%clk 0:01:45.8]} 39... Ka8 {[%clk
0:00:17.9]} 40. e6 {[%clk 0:01:44.8]} 40... Rc7 {[%clk 0:00:16.2]} 41. Ra6+
{[%clk 0:01:43.2]} 41... Kb8 {[%clk 0:00:15.7]} 42. Kh2 {[%clk 0:01:41]} 42...
Re7 {[%clk 0:00:12.7]} 43. Ne4 {[%clk 0:01:40.6]} 43... Kb7 {[%clk 0:00:12.7]}
44. Nc5+ {[%clk 0:01:40.7]} 44... Kb8 {[%clk 0:00:13.3]} 45. Rb6+ {[%clk
0:01:40.8]} 45... Kc8 {[%clk 0:00:13.3]} 46. Rb7 {[%clk 0:01:40.4]} 46... Re8
{[%clk 0:00:13.4]} 47. Ra7 {[%clk 0:01:40.1]} 47... Kb8 {[%clk 0:00:13]} 48.
Rxh7 {[%clk 0:01:40.1]} 48... g5 {[%clk 0:00:13.4]} 49. Nd7+ {[%clk 0:01:40.3]}
49... Ka8 {[%clk 0:00:12.8]} 50. e7 {[%clk 0:01:38.8]} 50... Kb7 {[%clk
0:00:11.7]} 51. Nf6 {[%clk 0:01:38.8]} 51... g4 {[%clk 0:00:12.3]} 52. Nxe8
{[%clk 0:01:37.3]} 52... g3+ {[%clk 0:00:13.2]} 53. fxg3 {[%clk 0:01:37.5]}
53... Kb6 {[%clk 0:00:13.5]} 54. Rh6+ {[%clk 0:01:37]} 54... Kb7 {[%clk
0:00:11.1]} 55. Rb6+ {[%clk 0:01:37]} 55... Kc8 {[%clk 0:00:10.4]} 56. Nd6+
{[%clk 0:01:36]} 56... Kc7 {[%clk 0:00:11.3]} 57. Rb7+ {[%clk 0:01:35.9]} 57...
Kxd6 {[%clk 0:00:08.7]} 1-0

[Event "*** Titled Tuesday Blitz"]
[Site "Chess.com"]
[Date "2020.12.01"]
[Round "6"]
[White "FairChess_on_YouTube"]
[Black "DenLaz"]
[Result "1-0"]
[WhiteElo "3000"]
[BlackElo "2800"]
[TimeControl "180+1"]
[EndTime "11:04:40 PST"]
[Termination "FairChess_on_YouTube won by resignation"]

1. e4 {[%clk 0:03:00.9]} 1... e5 {[%clk 0:02:59.3]} 2. Nf3 {[%clk 0:03:00.6]}
2... Nc6 {[%clk 0:02:59.9]} 3. d4 {[%clk 0:03:00.9]} 3... exd4 {[%clk
0:02:59.4]} 4. Nxd4 {[%clk 0:03:01.8]} 4... Bc5 {[%clk 0:02:59.2]} 5. Be3 {[%clk
0:02:58.3]} 5... Qf6 {[%clk 0:02:55.7]} 6. c3 {[%clk 0:02:58.3]} 6... Nge7
{[%clk 0:02:55.6]} 7. Bb5 {[%clk 0:02:56.5]} 7... O-O {[%clk 0:02:50.6]} 8. O-O
{[%clk 0:02:52.2]} 8... d6 {[%clk 0:02:43.3]} 9. Nxc6 {[%clk 0:02:48.9]} 9...
bxc6 {[%clk 0:02:41.6]} 10. Bxc5 {[%clk 0:02:47.7]} 10... cxb5 {[%clk
0:02:41.3]} 11. Bd4 {[%clk 0:02:42.2]} 11... Qg6 {[%clk 0:02:37.7]} 12. Nd2
{[%clk 0:02:42.3]} 12... Be6 {[%clk 0:02:26.7]} 13. a4 {[%clk 0:02:35.5]} 13...
a6 {[%clk 0:02:15.3]} 14. Qe2 {[%clk 0:02:35.2]} 14... c5 {[%clk 0:02:07.3]} 15.
Be3 {[%clk 0:02:34.7]} 15... f5 {[%clk 0:01:43.2]} 16. f3 {[%clk 0:02:23.5]}
16... fxe4 {[%clk 0:01:38.1]} 17. axb5 {[%clk 0:02:23.2]} 17... exf3 {[%clk
0:01:24.9]} 18. Nxf3 {[%clk 0:02:22.9]} 18... axb5 {[%clk 0:01:24.6]} 19. Rxa8
{[%clk 0:02:22.1]} 19... Rxa8 {[%clk 0:01:25.5]} 20. Qxb5 {[%clk 0:02:21.8]}
20... Bd5 {[%clk 0:01:18.5]} 21. Qd7 {[%clk 0:02:12.3]} 21... Nf5 {[%clk
0:00:57.6]} 22. Bf4 {[%clk 0:02:12.1]} 22... Rf8 {[%clk 0:00:51.9]} 23. g3
{[%clk 0:01:56.8]} 23... Qf7 {[%clk 0:00:33.5]} 24. Qxf7+ {[%clk 0:01:53.3]}
24... Rxf7 {[%clk 0:00:34.4]} 25. Ng5 {[%clk 0:01:46.3]} 25... Rf6 {[%clk
0:00:33.9]} 26. Rd1 {[%clk 0:01:45.5]} 26... Bb3 {[%clk 0:00:32.5]} 27. Rd2
{[%clk 0:01:44]} 27... d5 {[%clk 0:00:31.6]} 28. Re2 {[%clk 0:01:41.1]} 28... d4
{[%clk 0:00:25.6]} 29. cxd4 {[%clk 0:01:34.9]} 29... cxd4 {[%clk 0:00:26.5]} 30.
Re8+ {[%clk 0:01:32.9]} 30... Rf8 {[%clk 0:00:25.3]} 31. Rxf8+ {[%clk
0:01:33.5]} 31... Kxf8 {[%clk 0:00:26.2]} 32. Nxh7+ {[%clk 0:01:33.9]} 32... Ke7
{[%clk 0:00:21.7]} 33. Kf2 {[%clk 0:01:30.7]} 33... Ke6 {[%clk 0:00:20.2]} 34.
g4 {[%clk 0:01:29.8]} 34... Ne7 {[%clk 0:00:19.8]} 35. h4 {[%clk 0:01:25.8]}
35... Nc6 {[%clk 0:00:19.2]} 36. h5 {[%clk 0:01:17.8]} 36... Nb4 {[%clk
0:00:19.4]} 37. Ng5+ {[%clk 0:01:15.3]} 37... Kd5 {[%clk 0:00:19.1]} 38. Kg3
{[%clk 0:01:11.8]} 38... Nd3 {[%clk 0:00:19]} 39. Nf3 {[%clk 0:01:09.4]} 39...
Nxb2 {[%clk 0:00:18.7]} 40. Be5 {[%clk 0:01:07.8]} 40... Bd1 {[%clk 0:00:06.5]}
41. Bxg7 {[%clk 0:01:07.5]} 41... Bxf3 {[%clk 0:00:04.1]} 42. Kxf3 {[%clk
0:01:08.4]} 42... Nc4 {[%clk 0:00:05]} 43. h6 {[%clk 0:01:06.8]} 43... Nd6
{[%clk 0:00:04.4]} 44. h7 {[%clk 0:01:05.7]} 44... Nf7 {[%clk 0:00:04.9]} 45.
h8=Q {[%clk 0:01:04]} 45... Nxh8 {[%clk 0:00:05.1]} 46. Bxh8 {[%clk 0:01:04.9]}
1-0

[Event "*** Titled Tuesday Blitz"]
[Site "Chess.com"]
[Date "2020.12.01"]
[Round "6"]
[White "anon481216"]
[Black "elohunter1999"]
[Result "1-0"]
[WhiteElo "2418"]
[BlackElo "2565"]
[TimeControl "180+1"]
[EndTime "11:04:40 PST"]
[Termination "anon481216 won on time"]

1. d4 {[%clk 0:03:00.9]} 1... d5 {[%clk 0:02:58.9]} 2. c4 {[%clk 0:03:01]} 2...
c6 {[%clk 0:02:54.7]} 3. cxd5 {[%clk 0:02:59]} 3... cxd5 {[%clk 0:02:54.5]} 4.
Nc3 {[%clk 0:02:59.3]} 4... Nf6 {[%clk 0:02:54.3]} 5. Bf4 {[%clk 0:02:59.3]}
5... Nc6 {[%clk 0:02:52.8]} 6. e3 {[%clk 0:02:59.5]} 6... Bf5 {[%clk 0:02:52.3]}
7. Qb3 {[%clk 0:02:59.1]} 7... Na5 {[%clk 0:02:52]} 8. Qa4+ {[%clk 0:02:59.2]}
8... Bd7 {[%clk 0:02:51.9]} 9. Qc2 {[%clk 0:02:59.4]} 9... e6 {[%clk 0:02:51.8]}
10. Bd3 {[%clk 0:02:58.8]} 10... a6 {[%clk 0:02:49.9]} 11. Nf3 {[%clk
0:02:57.6]} 11... Rc8 {[%clk 0:02:49.1]} 12. Ne5 {[%clk 0:02:54.8]} 12... Be7
{[%clk 0:02:48.9]} 13. g4 {[%clk 0:02:49.2]} 13... b5 {[%clk 0:02:47.9]} 14. Qe2
{[%clk 0:02:42.8]} 14... Nc4 {[%clk 0:02:47.8]} 15. g5 {[%clk 0:02:40.1]} 15...
Ne4 {[%clk 0:02:37]} 16. Bxe4 {[%clk 0:02:34.7]} 16... dxe4 {[%clk 0:02:36.1]}
17. Nxe4 {[%clk 0:02:34.7]} 17... Nxe5 {[%clk 0:02:01.5]} 18. Bxe5 {[%clk
0:02:14.6]} 18... Bc6 {[%clk 0:01:59.4]} 19. f3 {[%clk 0:02:13.7]} 19... Bxe4
{[%clk 0:01:52]} 20. fxe4 {[%clk 0:02:13.6]} 20... Bxg5 {[%clk 0:01:52.9]} 21.
O-O {[%clk 0:02:05.4]} 21... O-O {[%clk 0:01:48.6]} 22. Kh1 {[%clk 0:02:02.8]}
22... f6 {[%clk 0:01:32.9]} 23. Bg3 {[%clk 0:02:00.6]} 23... Qd7 {[%clk
0:01:31.2]} 24. Rac1 {[%clk 0:01:57.2]} 24... Rxc1 {[%clk 0:01:26.9]} 25. Rxc1
{[%clk 0:01:56.8]} 25... Rc8 {[%clk 0:01:27.8]} 26. Rg1 {[%clk 0:01:46.2]} 26...
Qb7 {[%clk 0:01:17.4]} 27. Qf3 {[%clk 0:01:25.1]} 27... Rc2 {[%clk 0:01:12.2]}
28. Rg2 {[%clk 0:01:24.9]} 28... Qc6 {[%clk 0:01:01]} 29. h4 {[%clk 0:01:24]}
29... Bh6 {[%clk 0:00:58]} 30. d5 {[%clk 0:01:20.4]} 30... Qc8 {[%clk 0:00:34]}
31. Rxc2 {[%clk 0:01:04.6]} 31... Qxc2 {[%clk 0:00:33.6]} 32. dxe6 {[%clk
0:01:05]} 32... Qc1+ {[%clk 0:00:27.8]} 33. Kh2 {[%clk 0:00:58]} 33... Qxb2+
{[%clk 0:00:26.3]} 34. Kh3 {[%clk 0:00:57.9]} 34... Qxa2 {[%clk 0:00:11.3]} 35.
Qf5 {[%clk 0:00:57.1]} 35... Qa3 {[%clk 0:00:08.1]} 36. Qd5 {[%clk 0:00:53]}
36... Qe7 {[%clk 0:00:03.1]} 37. Qd7 {[%clk 0:00:44.6]} 1-0

[Event "*** Titled Tuesday Blitz"]
[Site "Chess.com"]
[Date "2020.12.01"]
[Round "6"]
[White "stoleriu"]
[Black "BJthechessgod"]
[Result "1-0"]
[WhiteElo "2555"]
[BlackElo "2304"]
[TimeControl "180+1"]
[EndTime "11:04:44 PST"]
[Termination "stoleriu won on time"]

1. e4 {[%clk 0:03:00.9]} 1... c5 {[%clk 0:02:59.6]} 2. Nf3 {[%clk 0:02:57]} 2...
Nc6 {[%clk 0:02:58.9]} 3. Bb5 {[%clk 0:02:57.1]} 3... g6 {[%clk 0:02:56.5]} 4.
Bxc6 {[%clk 0:02:56]} 4... dxc6 {[%clk 0:02:55.4]} 5. d3 {[%clk 0:02:56.5]} 5...
Bg7 {[%clk 0:02:55.5]} 6. h3 {[%clk 0:02:51.3]} 6... Qc7 {[%clk 0:02:55.4]} 7.
O-O {[%clk 0:02:49.4]} 7... e5 {[%clk 0:02:55.3]} 8. Be3 {[%clk 0:02:48.9]} 8...
b6 {[%clk 0:02:54.8]} 9. a4 {[%clk 0:02:39]} 9... a5 {[%clk 0:02:46]} 10. Nbd2
{[%clk 0:02:38]} 10... Ne7 {[%clk 0:02:45.1]} 11. Nc4 {[%clk 0:02:37.1]} 11...
O-O {[%clk 0:02:42.1]} 12. Qd2 {[%clk 0:02:31.8]} 12... Be6 {[%clk 0:02:34]} 13.
Bh6 {[%clk 0:02:30.2]} 13... Bxc4 {[%clk 0:02:22.6]} 14. Bxg7 {[%clk 0:02:23.1]}
14... Kxg7 {[%clk 0:02:21.6]} 15. dxc4 {[%clk 0:02:22.7]} 15... Rad8 {[%clk
0:02:19.6]} 16. Qc3 {[%clk 0:02:20.7]} 16... f6 {[%clk 0:02:17.2]} 17. Rad1
{[%clk 0:02:19.7]} 17... Rxd1 {[%clk 0:02:14.3]} 18. Rxd1 {[%clk 0:02:15.4]}
18... Rd8 {[%clk 0:02:15.2]} 19. Rd3 {[%clk 0:02:09.6]} 19... Nc8 {[%clk
0:02:01.8]} 20. Qd2 {[%clk 0:01:48.4]} 20... Rxd3 {[%clk 0:01:58.4]} 21. Qxd3
{[%clk 0:01:49.3]} 21... Qd6 {[%clk 0:01:56.5]} 22. Qe2 {[%clk 0:01:38.5]} 22...
Qd7 {[%clk 0:01:30.8]} 23. Ne1 {[%clk 0:01:26.3]} 23... Nd6 {[%clk 0:01:18]} 24.
b3 {[%clk 0:01:23.2]} 24... Nf7 {[%clk 0:01:09.6]} 25. c3 {[%clk 0:01:22.5]}
25... Ng5 {[%clk 0:01:06.5]} 26. h4 {[%clk 0:01:19.4]} 26... Ne6 {[%clk
0:01:06]} 27. g3 {[%clk 0:01:19.8]} 27... h5 {[%clk 0:01:04.5]} 28. Ng2 {[%clk
0:01:16.8]} 28... Nc7 {[%clk 0:00:59.7]} 29. Ne3 {[%clk 0:01:16.3]} 29... b5
{[%clk 0:00:56.8]} 30. cxb5 {[%clk 0:01:15.1]} 30... cxb5 {[%clk 0:00:57.1]} 31.
axb5 {[%clk 0:01:15.2]} 31... Qxb5 {[%clk 0:00:50.8]} 32. Qd1 {[%clk 0:01:06.7]}
32... Qc6 {[%clk 0:00:45.5]} 33. f3 {[%clk 0:01:03.9]} 33... Nb5 {[%clk
0:00:38.2]} 34. Qd3 {[%clk 0:01:04]} 34... Nd6 {[%clk 0:00:29]} 35. c4 {[%clk
0:01:04.3]} 35... Kf7 {[%clk 0:00:25.5]} 36. Nd5 {[%clk 0:01:03.4]} 36... Ke6
{[%clk 0:00:24.7]} 37. f4 {[%clk 0:00:56.8]} 37... exf4 {[%clk 0:00:17.5]} 38.
gxf4 {[%clk 0:00:57.7]} 38... Qb7 {[%clk 0:00:08.3]} 39. e5 {[%clk 0:00:50.1]}
39... Nf5 {[%clk 0:00:04.7]} 40. Nxf6 {[%clk 0:00:43.4]} 1-0